[Event "13th Asrian Memorial 2022"]
[Site "Yerevan"]
[Date "2022.06.09"]
[Round "3.1"]
[White "Ohanyan, Emin"]
[Black "Sargsyan, Shant"]
[Result "0-1"]
[ECO "D39"]
[WhiteElo "2366"]
[BlackElo "2641"]
[Annotator "TA"]
[PlyCount "56"]
[EventDate "2022.06.07"]
[EventType "swiss"]
[EventCountry "ARM"]
[SourceTitle "playchess.com"]
[Source "ChessBase"]
[SourceQuality "1"]
[TimeControl "40/5400+30:1800+30"]

{[%evp 15,56,23,32,10,27,33,22,20,22,28,27,21,31,33,35,0,0,0,0,0,0,-24,-19,-83,-81,-129,-112,-411,-100,-94,-101,-89,-94,-132,-139,-503,-495,-792,-721,-1671,-1375,-29958,-698]} 1. d4 {[%emt 0:00:22]} Nf6 {[%emt 0:04:20]} 2. c4 {[%emt 0:00:04]} e6 {[%emt 0:01:06]} 3. Nf3 {[%emt 0:00:11]} d5 {[%emt 0:00:11]} 4. Nc3 {[%emt 0:00:03]} dxc4 {[%emt 0:00:29]} 5. e4 {[%emt 0:00:05]} Bb4 {[%emt 0:00:31]} 6. Bg5 {[%emt 0:00:28]} h6 {[%emt 0:00:47]} 7. Bxf6 {[%emt 0:00:13]} Qxf6 {[%emt 0:00:02]} 8. Bxc4 {[%emt 0:00:14]} c5 {[%emt 0:00:10]} 9. O-O {[%emt 0:00:15] Black must now prevent Nb5. D39: Queen's Gambit Declined: Ragozin Defence with 5 Bg5 dxc4.} cxd4 {[%emt 0:00:55]} 10. Nb5 {[%emt 0:00:30] Hoping for Nc7+.} Qe7 {[%emt 0:01:37] Prevents Nc7+.} 11. Qxd4 {[%emt 0:00:29] The position is equal.} O-O {[%emt 0:00:16]} 12. Nxa7 {[%emt 0:00:03]} Bc5 {[%emt 0:00:53]} 13. Nxc8 {[%emt 0:00:05]} Rxc8 {[%emt 0:00:05]} 14. Qd3 {[%emt 0:00:17]} Nc6 {[%emt 0:00:48]} 15. a3 {[%emt 0:19:21] [#]} g5 $146 {[%emt 0:00:24]} ({Predecessor:} 15... Rd8 16. Qe2 Nd4 17. Nxd4 Bxd4 18. Rac1 Qf6 19. Rc2 Bb6 20. g3 Rd4 21. Kg2 Qe5 {½-½ (55) Talu,M (2386)-Paraschiv,P (2031) Mamaia 2021}) 16. h3 {[%emt 0:21:12]} Qf6 {[%emt 0:04:01]} 17. Qe2 {[%emt 0:10:45]} h5 {[%emt 0:13:27][%cal Bh6h5,Bh5g4,Bg4f3][%mdl 32]} 18. g3 {[%emt 0:22:44]} g4 {[%emt 0:05:29]} 19. hxg4 {[%emt 0:01:05]} (19. Nh2 $11) 19... hxg4 $17 {[%emt 0:00:07]} 20. Nh2 {[%emt 0:16:28]} ({Better is} 20. Nh4) 20... Ne5 $1 {[%emt 0:00:26] Threatens to win with ...Qh6. Black is much more active.} 21. Bb3 $2 {[%emt 0:03:05][%mdl 8192]} ({Much worse is} 21. Nxg4 $6 Qg6 $1 22. Nxe5 (22. b4 $2 Bxf2+ 23. Rxf2 Nxg4 $19) 22... Qxg3+ 23. Kh1 Qxe5 $11) (21. Kg2 $17 Qg6 22. Rac1) 21... Nf3+ $2 {[%emt 0:02:14]} (21... Qh6 $19 {has better winning chances. aiming for ...Kg7.} 22. Rac1 (22. Nxg4 $2 Qh3 $19) 22... Bxf2+ $1 {[%mdl 512]} 23. Qxf2 Rxc1) 22. Nxf3 {[%emt 0:00:54]} gxf3 {[%emt 0:00:21]} 23. Qd2 {[%emt 0:00:49] [#]} Kg7 $1 {[%emt 0:06:22]} 24. Bd1 {[%emt 0:01:31] [#]} Rh8 $1 $40 {[%emt 0:01:42][%mdl 128] Black has strong attack.} 25. Bxf3 $2 {[%emt 0:01:12][%mdl 8192]} (25. Qc3 $17 {nothing else works.} Qxc3 26. bxc3) 25... Qxf3 $19 {[%emt 0:00:15][%cal Rf3g3]} 26. Qg5+ {[%emt 0:00:11]} (26. Qc3+ $142 Qxc3 27. bxc3) 26... Kh7 {[%emt 0:00:07][%cal Oa8g8] ( -> ...Rag8!)} ({Not} 26... Kf8 27. Qxc5+ Kg8 28. Qg5+ Kf8 29. Qc5+ Kg8 30. Qg5+ Kf8 31. Qc5+ $11) 27. Rac1 {[%emt 0:00:50]} Rag8 {[%emt 0:01:18]} 28. Rc3 {[%emt 0:00:32]} Qxf2+ {[%emt 0:00:12] Weighted Error Value: White=1.16/Black=0.31} (28... Bxf2+ $142 29. Rxf2 Qd1+ 30. Rf1 Qd4+ 31. Qe3 Rxg3+ 32. Kf2 Rxe3 33. Rxe3 Kg8 34. Rg1+ Kf8 35. Rg4 Rh3 36. Rgg3 Rh2+ 37. Rg2 Qd2+ 38. Re2 Rxg2+ 39. Kxg2 Qxe2+ 40. Kg3 Qe3+ 41. Kg2 f5 42. exf5 exf5 43. Kf1 f4 44. Kg2 Qg3+ 45. Kf1 f3 46. b4 Qg2+ 47. Ke1 Qe2#) 0-1

[Event "13th Asrian Memorial 2022"]
[Site "Yerevan"]
[Date "2022.06.09"]
[Round "3.2"]
[White "Chaqryan, Erik"]
[Black "Petrosian, Tigran L."]
[Result "1/2-1/2"]
[ECO "A20"]
[WhiteElo "2366"]
[BlackElo "2553"]
[Annotator "TA"]
[PlyCount "89"]
[EventDate "2022.06.07"]
[EventType "swiss"]
[EventCountry "ARM"]
[SourceTitle "playchess.com"]
[Source "ChessBase"]
[SourceQuality "1"]
[TimeControl "40/5400+30:1800+30"]

{[%evp 9,89,19,35,32,33,54,56,28,57,42,80,62,90,83,79,81,87,87,76,83,107,91,122,97,162,166,160,168,171,111,115,110,141,100,93,104,120,82,83,69,85,66,59,45,53,56,56,20,28,0,10,0,0,0,63,64,56,70,83,70,256,8,3,47,43,0,0,0,0,0,0,0,0,0,0,0,0,0,0,0,0,0]} 1. c4 {[%emt 0:26:39]} e5 {[%emt 0:20:42]} 2. g3 {[%emt 0:00:05]} g6 {[%emt 0:03:04]} 3. d4 {[%emt 0:00:22]} d6 {[%emt 0:01:37][%cal Bd7d6,Bd6e5][%mdl 32]} 4. dxe5 {[%emt 0:03:03]} dxe5 {[%emt 0:00:07]} 5. Qxd8+ {[%emt 0:00:04]} Kxd8 {[%emt 0:00:03]} 6. Nc3 {[%emt 0:00:14] A20: English Opening: 1...e5.} c6 {[%emt 0:00:17]} 7. f4 {[%emt 0:00:06]} Be6 {[%emt 0:00:41]} 8. Nf3 {[%emt 0:01:43] White is slightly better.} Nd7 {[%emt 0:01:45] [#]} 9. fxe5 $146 {[%emt 0:05:50]} ({Predecessor:} 9. e4 f6 10. Be3 Nh6 11. h3 exf4 12. gxf4 Bc5 13. Nd4 Bf7 14. O-O-O Ke7 15. a3 {0-1 (38) Tyurin,A (2261)-Brankovic,D (2302) Paracin 2022}) 9... h6 {[%emt 0:11:19]} 10. b3 {[%emt 0:28:04]} Bg7 {[%emt 0:23:13]} 11. Bb2 $36 {[%emt 0:07:22][%mdl 2048] White is in control.} Nxe5 {[%emt 0:04:19]} 12. O-O-O+ {[%emt 0:01:58]} Nd7 {[%emt 0:00:06]} 13. Nd4 {[%emt 0:00:19] White is more active.} Bxd4 {[%emt 0:01:16]} (13... Bg4 $2 14. h3 Be6 15. Ne4 $16) 14. Rxd4 {[%emt 0:00:04]} Ngf6 {[%emt 0:00:07]} 15. Ba3 {[%emt 0:06:23]} a6 {[%emt 0:11:21]} 16. Na4 {[%emt 0:09:00]} b5 {[%emt 0:04:22]} (16... Kc8 $16) 17. Nc5 $1 $18 {[%emt 0:03:42]} Kc7 {[%emt 0:00:05]} 18. Nxe6+ {[%emt 0:00:14]} ({But not} 18. Bg2 $6 Rhe8 $16) 18... fxe6 {[%emt 0:00:05]} 19. Bg2 {[%emt 0:01:07]} (19. Bd6+ $18 Kb6 20. Bg2) 19... c5 $16 {[%emt 0:01:32]} 20. Rd2 {[%emt 0:08:23]} Rab8 {[%emt 0:00:07]} 21. cxb5 {[%emt 0:00:39]} axb5 {[%emt 0:00:28]} 22. Bb2 {[%emt 0:00:06]} Rhe8 {[%emt 0:02:27]} 23. Rf1 {[%emt 0:05:27]} e5 {[%emt 0:00:14]} 24. Bh3 {[%emt 0:00:04] This bishop pair is nice.} Re7 {[%emt 0:00:23]} 25. Rfd1 {[%emt 0:01:10] Black must now prevent Bxd7.} Rb6 {[%emt 0:00:37]} 26. a3 {[%emt 0:01:38]} Rc6 {[%emt 0:05:11]} 27. Kb1 {[%emt 0:01:30]} Nb6 {[%emt 0:00:48]} 28. Bg2 {[%emt 0:00:42] Prevents Ne4.} e4 {[%emt 0:00:25]} 29. Rd8 {[%emt 0:03:38]} g5 {[%emt 0:03:57]} 30. h4 {[%emt 0:00:23]} Ng4 {[%emt 0:00:12]} 31. hxg5 {[%emt 0:04:32]} Ne3 {[%emt 0:01:58]} (31... hxg5 $11 32. Rg8 Ne3) 32. Bf6 $14 {[%emt 0:00:09] Dancing on a razor blade.} Nxd1 {[%emt 0:00:04]} 33. Bxe7 {[%emt 0:00:04]} Nc3+ {[%emt 0:09:37]} 34. Kb2 Ncd5 {[#]} (34... Nbd5 $1 $14) 35. Bxe4 $2 {[%emt 0:00:08]} ({Better is} 35. Rd6 $1 $18 {[%mdl 512]} Nxe7 36. Rxc6+ Nxc6 37. gxh6) 35... Nxe7 $11 {[%emt 0:00:36]} 36. Bxc6 {[%emt 0:00:08]} hxg5 {[%emt 0:00:24]} (36... Kxd8 $2 {[#]} 37. gxh6 $1 Ng6 38. Bxb5 $18) 37. Re8 {[%emt 0:01:15]} (37. Rf8 $5 Kxc6 38. Rf6+ Kc7 39. Rf7 $14) 37... Nxc6 {[%emt 0:00:05][%mdl 4096] Endgame. The position is equal.} 38. Rg8 {[%emt 0:00:02]} c4 {[%emt 0:01:06]} 39. Rxg5 {[%emt 0:00:44]} Nd4 {[%emt 0:00:23][%csl LRb3,LRe2]} 40. e3 {[%emt 0:02:27]} Nxb3 {[%emt 0:00:09]} 41. Rxb5 {[%emt 0:00:05]} Na4+ {[%emt 0:02:39]} 42. Kc2 {[%emt 0:01:06] Threatens to win with Rf5.} Na1+ {[%emt 0:00:23]} 43. Kc1 {[%emt 0:01:48]} Nb3+ {[%emt 0:00:05]} 44. Kc2 {[%emt 0:00:05] aiming for Rf5.} Na1+ {[%emt 0:00:03]} 45. Kc1 {[%emt 0:00:03] Black defended with fortune.  Weighted Error Value: White=0.22 (precise) /Black=0.16 (very precise)} 1/2-1/2

[Event "13th Asrian Memorial 2022"]
[Site "Yerevan"]
[Date "2022.06.09"]
[Round "3.3"]
[White "Davtyan, Artur"]
[Black "Nadanian, Ashot"]
[Result "1-0"]
[ECO "A21"]
[WhiteElo "2488"]
[BlackElo "2319"]
[Annotator "TA"]
[PlyCount "93"]
[EventDate "2022.06.07"]
[EventType "swiss"]
[EventCountry "ARM"]
[SourceTitle "playchess.com"]
[Source "ChessBase"]
[SourceQuality "1"]
[TimeControl "40/5400+30:1800+30"]

{[%evp 9,93,0,16,0,10,-1,24,9,27,20,36,2,43,18,31,23,66,59,75,54,64,55,95,75,77,61,75,65,91,81,146,139,158,164,166,192,182,152,204,152,154,152,340,335,490,401,372,262,283,246,237,225,225,225,214,205,210,215,206,213,226,220,279,229,480,415,401,403,403,224,182,0,484,475,471,477,496,473,650,666,670,663,668,657,576,568]} 1. c4 {[%emt 0:26:40]} e5 {[%emt 0:00:52]} 2. g3 {[%emt 0:00:16]} g6 {[%emt 0:00:32]} 3. Bg2 {[%emt 0:00:20]} Bg7 {[%emt 0:00:08]} 4. Nc3 {[%emt 0:00:38]} d6 {[%emt 0:00:58]} 5. d3 {[%emt 0:00:48]} f5 {[%emt 0:02:04]} 6. b4 {[%emt 0:00:46] A21: English Opening: 1...e5 2 Nc3.} c6 {[%emt 0:02:28]} 7. Bb2 {[%emt 0:10:26]} Nf6 {[%emt 0:00:49]} 8. Nf3 {[%emt 0:00:09] [#] White has an edge.} Qe7 $146 {[%emt 0:02:49]} ({Predecessor:} 8... O-O 9. O-O h6 10. c5 Be6 11. Qc2 Qc7 12. Na4 Nfd7 13. cxd6 Qxd6 14. Nc5 Bd5 {½-½ (37) Christen,P (2007)-Marti,G (2225) Koge 2010}) 9. O-O {[%emt 0:01:00]} O-O {[%emt 0:01:39]} 10. e3 {[%emt 0:12:32]} Kh8 {[%emt 0:06:08]} 11. Nd2 {[%emt 0:10:06]} Be6 {[%emt 0:07:29]} 12. b5 {[%emt 0:01:55]} d5 {[%emt 0:01:43]} 13. bxc6 {[%emt 0:01:24]} bxc6 {[%emt 0:00:28]} 14. Qa4 {[%emt 0:15:58]} Rd8 {[%emt 0:06:04]} 15. Rfc1 {[%emt 0:04:06]} a6 {[%emt 0:16:27]} 16. Rab1 {[%emt 0:02:06]} e4 {[%emt 0:14:44]} 17. Qa5 {[%emt 0:12:03]} ({Reject} 17. dxe4 dxe4 18. Nb3 Ng4 $11) 17... Nbd7 {[%emt 0:05:40]} 18. Ne2 {[%emt 0:03:18][%cal Bc3e2,Be2f4,Bf4d3,Bd3f4,Bf4d5,Bd5e7][%mdl 32]} Bg8 {[%emt 0:09:42]} 19. cxd5 {[%emt 0:03:44]} Bxd5 {[%emt 0:02:55]} (19... cxd5 $142 20. Nb3 Rdb8) 20. Nf4 {[%emt 0:03:54]} exd3 {[%emt 0:03:59]} 21. Bxd5 {[%emt 0:05:52]} (21. Nxd3 $6 Bxg2 22. Kxg2 c5 $14) 21... cxd5 {[%emt 0:00:47]} 22. Nxd3 {[%emt 0:00:06]} Rdb8 {[%emt 0:04:56]} 23. Bd4 {[%emt 0:00:31]} ({Don't do} 23. Rc7 $6 Qd8 $16) 23... Ne4 {[%emt 0:02:36]} (23... Rxb1 $16 {was worth a try.} 24. Rxb1 Qd8 25. Qxd8+ Rxd8) 24. Nf3 {[%emt 0:00:43]} Rxb1 {[%emt 0:00:48]} 25. Rxb1 {[%emt 0:00:36]} Ndf6 {[%emt 0:00:10]} (25... Bxd4 $16 26. Qxd5 (26. Nxd4 Qd8 $16) 26... Qd8) 26. Nfe5 $18 {[%emt 0:03:27]} Re8 {[%emt 0:01:35]} (26... Kg8 {might work better.} 27. Nf4 Qd8) 27. Nf4 {[%emt 0:00:42]} Kg8 {[%emt 0:01:55]} 28. Nxd5 {[%emt 0:00:51]} Qd8 {[%emt 0:00:17]} 29. Qxd8 {[%emt 0:01:26]} Rxd8 {[%emt 0:00:05]} 30. Ne7+ {[%emt 0:00:26]} Kf8 {[%emt 0:00:05]} 31. N7c6 {[%emt 0:00:35]} Rc8 {[%emt 0:00:36]} 32. Rb7 {[%emt 0:00:35] And now Rf7+ would win.} Nd5 {[%emt 0:07:44] [#]} 33. Nxg6+ $1 {[%mdl 512]} hxg6 34. Bxg7+ Kg8 {[%emt 0:00:14]} 35. Nd4 {[%emt 0:00:28]} Rc1+ {[%emt 0:01:38]} 36. Kg2 {[%emt 0:00:01]} Ra1 $2 {[%emt 0:00:20] [#]} (36... Rc7 37. Rxc7 Nxc7) 37. Nxf5 $1 {[%emt 0:00:45][%mdl 512]} Rxa2 {[%emt 0:00:05]} 38. Nh6+ {[%emt 0:00:51]} Kh7 {[%emt 0:00:02]} 39. Bf8+ {[%emt 0:00:10]} (39. Ng4 $142 {Bf6+ is the strong threat.} g5 40. Rd7) 39... Kh8 {[%emt 0:00:05]} 40. Bg7+ $2 {[%emt 0:00:02]} (40. Kf3 Ng5+ 41. Kg4) 40... Kh7 {[%emt 0:00:06]} 41. Ng4 {[%emt 0:00:51] aiming for Bf6+. White is clearly winning.} g5 {[%emt 0:03:47]} 42. Rd7 {[%emt 0:02:30]} Nb6 {[%emt 0:03:05]} 43. Re7 {[%emt 0:00:36]} Nd5 {[%emt 0:03:16]} 44. Rxe4 {[%emt 0:00:17]} Kxg7 {[%emt 0:00:05]} 45. Re5 {[%emt 0:00:05][%csl LRd5,LRg5]} Nc3 {[%emt 0:01:37]} 46. Rxg5+ {[%emt 0:00:07]} Kf8 {[%emt 0:00:05]} 47. h4 {[%emt 0:00:10] Weighted Error Value: White=0.22 (precise) /Black=0.37} 1-0

[Event "13th Asrian Memorial 2022"]
[Site "Yerevan"]
[Date "2022.06.09"]
[Round "3.4"]
[White "Dilanyan, Grigor"]
[Black "Gharibyan, Mamikon"]
[Result "1/2-1/2"]
[ECO "A46"]
[WhiteElo "2293"]
[BlackElo "2487"]
[Annotator "TA"]
[PlyCount "84"]
[EventDate "2022.06.07"]
[EventType "swiss"]
[EventCountry "ARM"]
[SourceTitle "playchess.com"]
[Source "ChessBase"]
[SourceQuality "1"]
[TimeControl "40/5400+30:1800+30"]

{[%evp 9,84,5,11,14,8,9,10,7,17,18,16,0,38,43,43,31,35,0,0,0,26,0,26,14,31,14,0,0,6,23,14,-3,0,0,26,-67,-56,-76,-73,-79,-41,-49,-46,-93,-99,-88,-89,-93,-97,-93,-77,-66,-62,-40,0,-69,-66,-69,-75,-69,-52,-46,0,-16,0,-58,0,0,0,0,0,0,0,0,0,0,0]} 1. d4 {[%emt 0:16:09]} Nf6 {[%emt 0:00:21]} 2. Nf3 {[%emt 0:00:15]} e6 {[%emt 0:00:28]} 3. g3 {[%emt 0:02:09]} b5 {[%emt 0:03:28]} 4. Qd3 {[%emt 0:00:11]} a6 {[%emt 0:01:32]} 5. e4 {[%emt 0:04:43][%cal Be2e4,Be4e5][%mdl 32]} Bb7 {[%emt 0:01:37]} 6. e5 {[%emt 0:00:13] A46: 1 d4 Nf6 2 Nf3 e6: Torre, London and Colle Systems.} Nd5 {[%emt 0:01:57] [#] aiming for ...Nb4.} 7. Bg2 {[%emt 0:00:37]} d6 {[%emt 0:05:16]} 8. O-O {[%emt 0:01:04]} Nd7 {[%emt 0:01:20]} 9. a4 {[%emt 0:15:53]} b4 {[%emt 0:11:15]} 10. a5 {[%emt 0:08:37]} Be7 {[%emt 0:02:52]} 11. Nbd2 {[%emt 0:06:01]} O-O {[%emt 0:06:51] [#]} 12. Ne4 $146 {[%emt 0:01:35]} ({Predecessor:} 12. Nc4 Bc6 13. Re1 Bb5 14. Bf1 Re8 15. Qe4 Nf8 16. Qg4 Qd7 17. h4 Qc6 18. Nfd2 {½-½ (97) Krasenkow,M (2604)-Martirosyan,H (2344) Yerevan 2015}) 12... h6 {[%emt 0:00:21] Against Neg5} 13. c4 {[%emt 0:03:40]} bxc3 $1 {[%emt 0:00:40]} 14. bxc3 {[%emt 0:00:02]} Rb8 {[%emt 0:05:56]} 15. Rd1 {[%emt 0:04:34]} Bc6 {[%emt 0:10:22]} 16. Qe2 {[%emt 0:01:06]} (16. Qxa6 $2 Bb5 17. Qa7 Qc8 $19) 16... Qc8 {[%emt 0:04:07]} (16... f5 17. exd6 fxe4 18. dxe7 Qxe7 19. Qxe4 $16) 17. Ba3 {[%emt 0:09:26] And now c4 would win.} dxe5 {[%emt 0:03:23]} 18. Bxe7 {[%emt 0:02:26]} Nxe7 {[%emt 0:00:04]} 19. dxe5 {[%emt 0:00:14]} Bd5 {[%emt 0:07:44]} 20. c4 {[%emt 0:01:43]} Ba8 {[%emt 0:01:14]} 21. Ra2 {[%emt 0:01:18]} Ng6 {[%emt 0:01:15]} 22. Ned2 {[%emt 0:02:44]} (22. Rad2 $11 Bxe4 23. Qxe4 (23. Rxd7 Bc6 $11)) 22... Rd8 {[%emt 0:06:19]} 23. Raa1 {[%emt 0:04:04]} Bc6 {[%emt 0:01:36]} 24. Qe3 {[%emt 0:01:15]} Qb7 {[%emt 0:02:45][%cal Og6e5]} 25. Bf1 {[%emt 0:02:08]} Qb4 {[%emt 0:03:02]} 26. Bd3 {[%emt 0:06:46] [#]} (26. c5 $15) 26... Ndxe5 $1 $17 {[%emt 0:06:43]} 27. Nxe5 {[%emt 0:00:46]} Nxe5 {[%emt 0:00:06][%mdl 64] Remove Defender} 28. Qxe5 {[%emt 0:01:19]} Rxd3 {[%emt 0:00:10]} 29. Qxc7 {[%emt 0:00:13]} Ba8 {[%emt 0:02:47] Threatens to win with ...Rbd8.} 30. Nf1 {[%emt 0:00:23]} Rxd1 {[%emt 0:04:22]} 31. Rxd1 {[%emt 0:00:01]} Qf8 {[%emt 0:02:12] Prevents Rd8.} 32. Ne3 {[%emt 0:01:40]} (32. Rd6 $11) 32... Bf3 $15 {[%emt 0:00:26]} 33. Rc1 {[%emt 0:00:22]} Rc8 {[%emt 0:00:20]} 34. Qf4 {[%emt 0:00:15]} Ba8 {[%emt 0:00:20]} 35. Rb1 {[%emt 0:01:36][%cal Bc1b1,Bb1b6,Bb6b8][%mdl 32]} Qe8 {[%emt 0:02:27]} (35... Qc5 $15 {should be considered.}) 36. Rb6 {[%emt 0:02:26]} Rd8 {[%emt 0:01:22]} 37. Kf1 {[%emt 0:00:32]} (37. c5 $11) 37... Qa4 {[%emt 0:01:02]} ({Black should play} 37... Qd7 $15 38. Rb8 Bc6) 38. Rb8 $1 $11 {[%emt 0:00:26] The position is equal.} (38. Qe5 Kh7 39. Qc3 (39. Rxa6 $2 Bf3 $19) 39... Be4 $17) 38... Qxa5 {[%emt 0:00:30]} 39. Qd6 {[%emt 0:00:21] Against Bc6} Qa1+ {[%emt 0:00:48]} 40. Ke2 {[%emt 0:00:00]} Qa2+ {[%emt 0:00:00]} 41. Kf1 {[%emt 0:08:38]} Qa1+ {[%emt 0:01:07]} 42. Ke2 {[%emt 0:00:24] Really sharp!} Qa2+ {[%emt 0:00:09] Weighted Error Value: White=0.17 (very precise) /Black=0.11 (very precise)} 1/2-1/2

[Event "13th Asrian Memorial 2022"]
[Site "Yerevan"]
[Date "2022.06.09"]
[Round "3.5"]
[White "Yeritsyan, Hayk"]
[Black "Hayrapetyan, Hovik"]
[Result "0-1"]
[ECO "B51"]
[WhiteElo "2291"]
[BlackElo "2484"]
[Annotator "TA"]
[PlyCount "62"]
[EventDate "2022.06.07"]
[EventType "swiss"]
[EventCountry "ARM"]
[SourceTitle "playchess.com"]
[Source "ChessBase"]
[SourceQuality "1"]
[TimeControl "40/5400+30:1800+30"]

{[%evp 9,62,26,0,-37,-37,-68,-45,-61,-61,-62,-34,-65,-49,-50,-34,-87,-68,-76,-68,-63,-74,-81,-76,-80,-78,-60,-20,-13,-29,-58,-52,-131,-114,-215,-210,-225,-240,-354,-356,-428,-422,-368,-355,-351,-350,-357,-337,-580,-602,-689,-665,-599,-593,-747,-704]} 1. e4 {[%emt 0:01:07] ChessBase} c5 {[%emt 0:00:07]} 2. Nf3 {[%emt 0:00:14]} d6 {[%emt 0:00:05]} 3. Bb5+ {[%emt 0:01:33]} Nd7 {[%emt 0:00:20]} 4. Ba4 {[%emt 0:02:39]} Ngf6 {[%emt 0:00:35]} 5. O-O {[%emt 0:00:13]} a6 {[%emt 0:01:27] [#] Strongly threatening ...b5.} 6. c3 {[%emt 0:01:22] B51: Sicilian: Moscow Variation (3 Bb5+) without 3...Bd7.} Nxe4 {[%emt 0:07:30]} 7. Re1 {[%emt 0:01:22]} Nef6 {[%emt 0:00:23]} (7... b5 $5) 8. d4 {[%emt 0:00:22] Black is slightly better.} b5 {[%emt 0:00:12]} 9. Bc2 {[%emt 0:02:14]} Bb7 {[%emt 0:01:16]} 10. Bf4 {[%emt 0:13:34]} e6 {[%emt 0:01:39] [#]} 11. dxc5 $146 {[%emt 0:07:31]} ({Predecessor:} 11. a4 Be7 12. axb5 axb5 13. Na3 Qb6 14. Qe2 c4 15. b3 d5 16. bxc4 dxc4 17. Bc1 {0-1 (32) Fuglsang,F (2275)-Aagaard,J (2440) Copenhagen 1997 CBM 059 [ChessBase]}) 11... Nxc5 {[%emt 0:03:31]} 12. Nd4 {[%emt 0:03:20]} (12. b4 $15 Na4 13. Bxa4 bxa4 14. c4) 12... Be7 {[%emt 0:04:05]} 13. b4 {[%emt 0:04:30]} Na4 {[%emt 0:16:03]} 14. Bxa4 {[%emt 0:25:49]} bxa4 {[%emt 0:00:07]} 15. Qxa4+ {[%emt 0:00:01]} Qd7 {[%emt 0:00:06]} 16. Qxd7+ {[%emt 0:00:27]} Kxd7 {[%emt 0:00:19]} 17. c4 {[%emt 0:00:26]} d5 {[%emt 0:10:37]} 18. Nd2 $1 {[%emt 0:02:07]} ({Of course not} 18. c5 a5 19. bxa5 Bxc5 $17) 18... a5 $36 {[%emt 0:05:33][%mdl 2048] Black has good play.} (18... Bxb4 $2 19. Rab1 a5 20. a3 $18) 19. bxa5 {[%emt 0:05:19]} Rhc8 {[%emt 0:01:00]} 20. Rab1 {[%emt 0:02:21]} ({White should try} 20. Rec1 $15) 20... Ba6 $17 {[%emt 0:00:06]} 21. N2f3 {[%emt 0:09:14]} (21. cxd5 $17 Nxd5 22. Be3) 21... dxc4 $19 {[%emt 0:03:24]} 22. Rbd1 {[%emt 0:00:04] [#] Black must now prevent Nxe6+.} Ke8 {[%emt 0:01:25]} 23. Ne5 {[%emt 0:07:22]} (23. Bg5 $142) 23... Bb4 {[%emt 0:02:23][%csl LRa5,LRe1]} 24. Re3 {[%emt 0:01:06]} Nd5 {[%emt 0:00:29]} 25. Rf3 {[%emt 0:00:04]} Nxf4 {[%emt 0:08:42]} 26. Rxf4 {[%emt 0:00:01]} f6 {[%emt 0:00:49]} 27. Nec6 {[%emt 0:04:22]} e5 {[%emt 0:06:40]} 28. Rg4 $2 {[%emt 0:00:15]} (28. Nxb4 exf4 29. Nd5) 28... Bf8 {[%emt 0:00:17] Black is clearly winning.} 29. Re1 {[%emt 0:01:00]} Kf7 {[%emt 0:00:58]} 30. Nxe5+ {[%emt 0:00:10]} fxe5 {[%emt 0:00:08]} 31. Rxe5 {[%emt 0:00:01]} c3 {[%emt 0:00:36] Weighted Error Value: White=0.40/Black=0.04 (flawless)} 0-1